[Event "40th IND-chT Open 2020"]
[Site "Ahmedabad"]
[Date "2020.02.10"]
[Round "6.14"]
[White "Santu, Mondal"]
[Black "Sibi Visal R"]
[Result "0-1"]
[ECO "E04"]
[WhiteElo "2093"]
[BlackElo "2074"]
[Annotator "NA RC"]
[PlyCount "140"]
[EventDate "2020.02.05"]
[EventCountry "IND"]
[SourceTitle "playchess.com"]
[Source "ChessBase"]
[SourceQuality "1"]
[TimeControl "5400+30"]

{[%evp 28,133,-56,-73,32767,-76,32767,-77,-62,-72,-78,-190,32767,32767,32767,32767,32767,32767,32767,32767,32767,32767,32767,32767,32767,32767,32767,32767,32767,32767,32767,-100,-20,-189,-147,-163,-166,-159,-148,-166,-167,-233,-112,-136,-97,-114,-39,-208,-213,-203,-231,-202,-162,-233,-224,-218,32767,32767,-303,-311,-534,-380,-90,-233,-264,-270,-251,-373,-419,-625,-467,-479,-1394,-579,-350,32767,32767,32767,32767,-411,32767,32767,32767,32767,32767,-12851,-12851,-4653,-6854,-12851,-6034,-4631,-27999,-12851,-10146,-12798,-29972,-6872,-29972,-29984,-29973,-29986,-29987,-29987,-29988,-12851,-29989,-29989]} 1. d4 {[%emt 1:30:30]} Nf6 {[%emt 1:30:30]} 2. g3 {[%emt 0:00:30]} d5 {[%emt 0:00:30]} 3. c4 {[%emt 0:00:30]} e6 {[%emt 0:00:30]} 4. Nf3 {[%emt 0:00:30]} dxc4 {[%emt 0:00:30]} 5. Bg2 {[%emt 0:00:30]} Bb4+ {[%emt 0:00:30]} 6. Bd2 {[%emt 0:00:30]} a5 {[%emt 0:00:30]} 7. O-O {[%emt 0:00:30]} O-O {[%emt 0:00:30] E04: Open Catalan: 5 Nf3.} 8. Qc2 {[%emt 0:00:30] Nowadays more popular than 8.Bg5.} Bxd2 {[%emt 0:00:30]} 9. Nbxd2 {[%emt 0:00:30]} b5 {[%emt 0:00:30]} 10. a4 {[%emt 0:00:30]} c6 {[%emt 0:00:30]} 11. e4 {[%emt 0:00:30]} Na6 {[%emt 0:00:30]} 12. e5 {[%emt 0:00:30]} Nd5 {[%emt 0:00:30]} 13. Ne4 {[%emt 0:00:30]} Nab4 {[%emt 0:00:30] [#]} 14. Qe2 $146 {[%emt 0:00:30]} ({Predecessor:} 14. Qd2 Nb6 15. axb5 cxb5 16. Nd6 Bd7 17. Ng5 Bc6 18. f4 Bxg2 19. Kxg2 N6d5 20. Rf3 {1-0 (40) Shapiro,D (2044)-Sorochan,D (2034) Samara 2013}) 14... Nd3 {[%emt 0:00:30]} 15. Ne1 {[%emt 0:00:30]} Ba6 {[%emt 0:00:30]} 16. Nxd3 {[%emt 0:00:30]} cxd3 {[%emt 0:00:30]} 17. Qd2 {[%emt 0:00:30]} Nb4 {[%emt 0:00:30]} 18. Nd6 {[%emt 0:00:30]} Qb6 {[%emt 0:00:30]} 19. Rac1 {[%emt 0:00:30]} (19. Qc3 $17 {might work better.}) 19... Qxd4 {[%emt 0:00:30]} 20. axb5 {[%emt 0:00:30]} Qxe5 {[%emt 0:00:30]} 21. Nc4 {[%emt 0:00:30]} Qxb5 {[%emt 0:00:30]} 22. Rfe1 {[%emt 0:00:30]} Nc2 {[%emt 0:00:30]} 23. Re4 {[%emt 0:00:30]} Qb4 {[%emt 0:00:30]} 24. Qxd3 {[%emt 0:00:30]} f5 {[%emt 0:00:30]} 25. Rh4 {[%emt 0:00:30]} Ne1 {[%emt 0:00:30]} 26. Qe2 {[%emt 0:00:30]} Nxg2 {[%emt 0:00:30]} 27. Qxe6+ {[%emt 0:00:30]} Kh8 {[%emt 0:00:30]} 28. Kxg2 {[%emt 0:00:30]} Rf6 {[%emt 0:00:30]} 29. Qd7 {[%emt 0:00:30]} (29. Qe5 $15) 29... f4 {[%emt 0:00:30]} ({Black should try} 29... h6 $17 30. Qd4 Bb7) 30. Rg4 $2 {[%emt 0:00:30]} (30. Rxf4 $11 {and White is okay.} Rxf4 31. gxf4) 30... Rg8 {[%emt 0:00:30]} 31. Qd4 {[%emt 0:00:30] [#]} c5 $1 {[%emt 0:00:30]} 32. Qc3 {[%emt 0:00:30]} Qb7+ {[%emt 0:00:30]} 33. Kg1 {[%emt 0:00:30]} fxg3 {[%emt 0:00:30]} 34. hxg3 {[%emt 0:00:30]} (34. Rxg3 {might work better.} Bxc4 35. Qxc4) 34... Rh6 {[%emt 0:00:30]} (34... Rgf8 $19 35. Rf4 Rxf4 36. gxf4 Qf7) 35. f3 {[%emt 0:00:30] [#]} Bxc4 $1 {[%emt 0:00:30]} 36. Rxc4 $17 {[%emt 0:00:30]} Rb6 {[%emt 0:00:30]} 37. Rh4 {[%emt 0:00:30]} (37. Rxc5 $17 Rb3 38. Qc2) 37... Rb3 {[%emt 0:00:30]} 38. Qc2 {[%emt 0:00:30]} h6 {[%emt 0:00:30]} 39. Qe4 {[%emt 0:00:30]} Qxe4 {[%emt 0:00:30]} 40. fxe4 {[%emt 0:00:30]} (40. Rxe4 $17 {was worth a try.} Rxb2 41. Ra4) 40... Rxb2 {[%emt 0:00:30]} 41. e5 {[%emt 0:00:30]} Ra8 {[%emt 0:00:30]} 42. Re4 {[%emt 0:00:30]} a4 {[%emt 0:00:30]} 43. e6 {[%emt 0:00:30]} a3 {[%emt 0:00:30]} 44. e7 {[%emt 0:00:30]} Rbb8 $2 (44... Re8 $19 45. Ra4 a2) 45. Ra1 {[%emt 0:00:30]} Re8 {[%emt 0:01:00]} 46. Re5 {[%emt 0:00:30]} Ra7 {[%emt 0:00:30]} 47. Rxc5 {[%emt 0:00:30]} Rexe7 {[%emt 0:00:30]} 48. Rc3 {[%emt 0:00:30]} (48. Ra2 $142 Re3 49. Kh2) 48... a2 {[%emt 0:00:30]} 49. Rc2 {[%emt 0:00:30]} Re3 {[%emt 0:00:30]} 50. Rcxa2 {[%emt 0:00:30]} Rxa2 {[%emt 0:00:30]} 51. Rxa2 {[%emt 0:00:30]} Rxg3+ {[%emt 0:00:30]} 52. Kh2 {[%emt 0:00:30]} Rb3 {[%emt 0:00:30]} 53. Kg2 {[%emt 0:00:30]} Kh7 {[%emt 0:00:30]} 54. Rc2 {[%emt 0:00:30]} h5 {[%emt 0:00:30]} 55. Ra2 {[%emt 0:00:30]} Kh6 {[%emt 0:00:30]} 56. Ra6+ {[%emt 0:00:30]} g6 {[%emt 0:00:30]} 57. Ra5 {[%emt 0:00:30]} h4 {[%emt 0:00:30]} 58. Kh2 {[%emt 0:00:30]} g5 {[%emt 0:00:30]} 59. Kg2 {[%emt 0:00:30]} Kh5 {[%emt 0:00:30]} (59... h3+ $19 60. Kh2 Kh5) 60. Ra4 {[%emt 0:00:30]} Rb2+ {[%emt 0:00:30]} 61. Kg1 {[%emt 0:00:30]} h3 {[%emt 0:00:30]} 62. Ra1 {[%emt 0:00:30]} g4 {[%emt 0:00:30]} 63. Rc1 {[%emt 0:00:30]} Rd2 {[%emt 0:00:30]} 64. Ra1 {[%emt 0:00:30]} g3 {[%emt 0:00:30]} 65. Ra5+ {[%emt 0:00:30]} Kg4 {[%emt 0:00:30]} 66. Ra4+ {[%emt 0:00:30]} Kf5 {[%emt 0:00:30]} 67. Ra5+ {[%emt 0:00:30]} Kf4 {[%emt 0:00:30]} 68. Ra1 {[%emt 0:00:30]} Ke3 {[%emt 0:00:30]} 69. Re1+ {[%emt 0:00:30]} Kd3 {[%emt 0:00:30]} 70. Ra1 {[%emt 0:00:30]} Ke2 {[%emt 0:00:30]} 0-1

[Event "40th IND-chT Open 2020"]
[Site "Ahmedabad"]
[Date "2020.02.10"]
[Round "6.16"]
[White "Adarsh Tripathi"]
[Black "Ramnathan, Balasubramaniam"]
[Result "1-0"]
[ECO "C50"]
[WhiteElo "2100"]
[BlackElo "2200"]
[Annotator "ChessBase"]
[PlyCount "119"]
[EventDate "2020.02.05"]
[EventCountry "IND"]
[SourceTitle "playchess.com"]
[Source "ChessBase"]
[SourceQuality "1"]
[TimeControl "5400+30"]

1. e4 {[%emt 0:01:32]} e5 {[%emt 0:00:00]} 2. Nf3 {[%emt 0:00:05]} Nf6 {[%emt 0:00:00]} 3. Nc3 {[%emt 0:00:08]} Nc6 {[%emt 0:00:13]} 4. a3 {[%emt 0:00:23]} d6 {[%emt 0:00:56]} 5. Bc4 {[%emt 0:00:18]} Be7 {[%emt 0:00:13]} 6. h3 {[%emt 0:00:05]} O-O {[%emt 0:00:40]} 7. d4 {[%emt 0:00:05]} exd4 {[%emt 0:04:36]} 8. Nxd4 {[%emt 0:00:07]} Bd7 {[%emt 0:00:26]} 9. O-O {[%emt 0:00:10]} a6 {[%emt 0:00:31]} 10. Be3 {[%emt 0:00:29]} b5 {[%emt 0:01:59]} 11. Ba2 {[%emt 0:01:11]} Na5 {[%emt 0:05:52]} 12. b4 {[%emt 0:01:18]} Nb7 {[%emt 0:00:28]} 13. Nd5 {[%emt 0:01:55]} c5 {[%emt 0:05:22]} 14. Nf5 {[%emt 0:00:25]} Bxf5 {[%emt 0:02:32]} 15. exf5 {[%emt 0:00:06]} c4 {[%emt 0:01:16]} 16. c3 {[%emt 0:00:09]} Nxd5 {[%emt 0:02:27]} 17. Qxd5 {[%emt 0:00:06]} Qd7 {[%emt 0:00:33]} 18. Bd4 {[%emt 0:00:07]} Rae8 {[%emt 0:01:39]} 19. Bb1 {[%emt 0:00:16]} Bf6 {[%emt 0:00:58]} 20. Bxf6 {[%emt 0:01:58]} gxf6 {[%emt 0:00:06]} 21. Qd4 {[%emt 0:00:12]} Qe7 {[%emt 0:02:56]} 22. Bc2 {[%emt 0:00:32]} Qe5 {[%emt 0:05:25]} 23. Rad1 {[%emt 0:00:41]} d5 {[%emt 0:01:36]} 24. Qg4+ {[%emt 0:01:14]} Kh8 {[%emt 0:00:08]} 25. Rd4 {[%emt 0:00:14]} Rg8 {[%emt 0:04:46]} 26. Qh5 {[%emt 0:00:16]} Nd6 {[%emt 0:01:23]} 27. Rfd1 {[%emt 0:00:30]} Rg5 {[%emt 0:07:07]} 28. Qf3 {[%emt 0:00:23]} Nxf5 {[%emt 0:00:28]} 29. Rf4 {[%emt 0:03:38]} Nd6 {[%emt 0:07:07]} 30. h4 {[%emt 0:00:12]} Rg7 {[%emt 0:00:54]} 31. Rxd5 {[%emt 0:00:42]} Qe1+ {[%emt 0:02:32]} 32. Kh2 {[%emt 0:00:42]} Re6 {[%emt 0:16:48]} 33. Rxf6 {[%emt 0:01:14]} Ne8 {[%emt 0:11:18]} 34. Rxf7 {[%emt 0:00:50]} Rh6 {[%emt 0:02:06]} 35. Rf8+ {[%emt 0:00:19]} Rg8 {[%emt 0:00:15]} 36. Rh5 {[%emt 0:01:25]} Qd2 {[%emt 0:01:39]} 37. Rxg8+ {[%emt 0:00:55]} Kxg8 {[%emt 0:00:12]} 38. Qg4+ {[%emt 0:00:29]} Kf8 {[%emt 0:00:45]} 39. Rxh6 {[%emt 0:01:12]} Qxh6 {[%emt 0:00:05]} 40. Qf5+ {[%emt 0:00:39]} Ke7 {[%emt 0:00:50]} 41. g3 {[%emt 0:01:07]} Qf6 {[%emt 0:01:16]} 42. Qe4+ {[%emt 0:00:22]} Kd6 {[%emt 0:00:26]} 43. Qe3 {[%emt 0:00:28]} Qf7 {[%emt 0:01:29]} 44. Be4 {[%emt 0:00:41]} Nf6 {[%emt 0:00:20]} 45. Qc5+ {[%emt 0:00:08]} Kd7 {[%emt 0:00:26]} 46. Bc6+ {[%emt 0:01:08]} Kd8 {[%emt 0:00:19]} 47. Qd6+ {[%emt 0:00:17]} Kc8 {[%emt 0:00:09]} 48. Bf3 {[%emt 0:00:05]} Nd7 {[%emt 0:01:04]} 49. Qxa6+ {[%emt 0:00:48]} Kd8 {[%emt 0:00:10]} 50. Kg2 {[%emt 0:00:10]} Qf5 {[%emt 0:00:20]} 51. Qa8+ {[%emt 0:01:43]} Kc7 {[%emt 0:00:23]} 52. Qa5+ {[%emt 0:00:16]} Kd6 {[%emt 0:00:31]} 53. a4 {[%emt 0:00:11]} Ne5 {[%emt 0:00:17]} 54. Qb6+ {[%emt 0:00:19]} Ke7 {[%emt 0:00:24]} 55. Qb7+ {[%emt 0:00:05]} Kd6 {[%emt 0:00:37]} 56. Qd5+ {[%emt 0:00:06]} Kc7 {[%emt 0:01:25]} 57. a5 {[%emt 0:00:09]} Qf6 {[%emt 0:00:12]} 58. Qb7+ {[%emt 0:00:22]} Kd8 {[%emt 0:00:03]} 59. a6 {[%emt 0:00:53]} Nxf3 {[%emt 0:00:08]} 60. a7 {[%emt 0:00:15]} 1-0

[Event "40th IND-chT Open 2020"]
[Site "Ahmedabad"]
[Date "2020.02.10"]
[Round "6.19"]
[White "Swain Ashirwad"]
[Black "Das Susobhit"]
[Result "1/2-1/2"]
[ECO "B15"]
[WhiteElo "2087"]
[BlackElo "1846"]
[Annotator "NA RC"]
[PlyCount "109"]
[EventDate "2020.02.05"]
[EventCountry "IND"]
[SourceTitle "playchess.com"]
[Source "ChessBase"]
[SourceQuality "1"]
[TimeControl "5400+30"]

1. e4 {[%emt 0:00:59]} c6 {[%emt 0:00:28]} 2. d4 {[%emt 0:00:15]} d5 {[%emt 0:00:14]} 3. Nc3 {[%emt 0:00:41]} dxe4 {[%emt 0:00:53]} 4. Nxe4 {[%emt 0:00:06]} Nf6 {[%emt 0:00:36]} 5. Nxf6+ {[%emt 0:01:43]} exf6 {[%emt 0:00:13]} 6. Nf3 {[%emt 0:01:10]} Bd6 {[%emt 0:00:49]} 7. Be2 {[%emt 0:02:09]} O-O {[%emt 0:00:56]} 8. O-O {[%emt 0:00:03]} Re8 {[%emt 0:00:42]} 9. Be3 {[%emt 0:05:30]} Nd7 {[%emt 0:01:06]} 10. c4 {[%emt 0:02:43]} Nf8 {[%emt 0:01:56] B15: Caro-Kann: 3 Nc3: 3...g6 and 3...dxe4 4 Nxe4 Nf6 5 Nxf6+ exf6.} 11. d5 {[%emt 0:03:19]} c5 {[%emt 0:06:12]} 12. Re1 {[%emt 0:10:20]} Ng6 {[%emt 0:01:10] [#]} 13. Qc2 $146 {[%emt 0:02:08]} ({Predecessor:} 13. b4 cxb4 14. c5 Rxe3 15. fxe3 Bxc5 16. Kh1 Qd6 17. Qd3 Bd7 18. Nd2 Ne5 19. Qb3 {0-1 (36) Nazari,A (2333)-Rastbod,A (2326) Teheran 2020}) 13... Qc7 {[%emt 0:02:11]} 14. h3 {[%emt 0:04:02]} Bd7 {[%emt 0:03:27]} 15. Bf1 {[%emt 0:11:55]} a6 {[%emt 0:02:21]} 16. a3 {[%emt 0:02:22]} Rab8 {[%emt 0:04:29]} 17. Rac1 {[%emt 0:01:58]} b6 {[%emt 0:01:27]} 18. Bd2 {[%emt 0:03:54]} Bf4 {[%emt 0:07:36]} 19. Rxe8+ {[%emt 0:03:57]} Rxe8 {[%emt 0:01:18]} 20. Re1 {[%emt 0:00:12]} Rxe1 {[%emt 0:15:28]} 21. Bxe1 {[%emt 0:01:54]} Ne7 {[%emt 0:02:31]} 22. Bd3 {[%emt 0:04:52]} h6 {[%emt 0:01:50]} 23. Qe2 {[%emt 0:02:16]} Kf8 {[%emt 0:05:18]} 24. Bc3 {[%emt 0:03:58]} Qb8 {[%emt 0:05:33]} 25. b4 {[%emt 0:04:30]} Bd6 {[%emt 0:04:55]} 26. Qb2 {[%emt 0:03:44]} Nf5 {[%emt 0:02:05]} 27. bxc5 {[%emt 0:05:00]} bxc5 {[%emt 0:05:12]} 28. Qxb8+ {[%emt 0:02:16]} Bxb8 {[%emt 0:00:03]} 29. Nd2 {[%emt 0:00:50]} Nd6 {[%emt 0:06:32]} 30. Ba5 {[%emt 0:02:55]} Ba7 {[%emt 0:09:29]} 31. Bc7 {[%emt 0:01:22]} Ne8 {[%emt 0:02:27]} 32. Bf4 {[%emt 0:01:45]} Ke7 {[%emt 0:00:53]} 33. Ne4 {[%emt 0:02:48]} f5 {[%emt 0:00:59]} 34. Ng3 {[%emt 0:00:50]} g5 {[%emt 0:01:17]} 35. Be5 {[%emt 0:01:17]} f6 {[%emt 0:00:56]} 36. Bc3 {[%emt 0:00:06]} Ng7 {[%emt 0:01:50]} 37. Kf1 {[%emt 0:01:39]} Bb8 {[%emt 0:00:11]} 38. Ke2 {[%emt 0:00:34]} Be5 {[%emt 0:00:35]} 39. Kd2 {[%emt 0:00:32]} h5 {[%emt 0:00:56]} 40. Ne2 {[%emt 0:00:47]} h4 {[%emt 0:00:45]} 41. f4 {[%emt 0:00:55]} Bxc3+ {[%emt 0:00:40]} 42. Kxc3 {[%emt 0:00:58]} Nh5 {[%emt 0:00:30]} 43. Kd2 {[%emt 0:00:28]} Nxf4 {[%emt 0:00:55]} 44. Nxf4 {[%emt 0:01:06]} gxf4 {[%emt 0:00:01]} 45. Be2 {[%emt 0:00:22]} Kd6 {[%emt 0:00:43]} 46. Bf3 {[%emt 0:00:05]} Ke5 {[%emt 0:00:31]} 47. Kd3 {[%emt 0:00:19]} Be8 {[%emt 0:00:31]} 48. Kc3 {[%emt 0:00:29]} Ba4 {[%emt 0:00:13]} 49. Be2 {[%emt 0:00:57]} Ke4 {[%emt 0:01:10]} 50. Bd3+ {[%emt 0:00:05]} Ke5 {[%emt 0:00:04]} 51. Be2 {[%emt 0:00:02]} a5 {[%emt 0:00:24]} 52. Bf3 {[%emt 0:00:20]} Bd7 {[%emt 0:00:09]} 53. Kd3 $11 {[%emt 0:00:20]} Be8 {[%emt 0:00:07]} 54. Kc3 {[%emt 0:00:28]} Ba4 {[%emt 0:00:14]} 55. Be2 {[%emt 0:00:12]} 1/2-1/2

[Event "40th IND-chT Open 2020"]
[Site "Ahmedabad"]
[Date "2020.02.10"]
[Round "6.20"]
[White "Ashutosh, Mohanty"]
[Black "Baivab Mishra"]
[Result "0-1"]
[ECO "A73"]
[WhiteElo "1725"]
[BlackElo "2206"]
[Annotator "ChessBase"]
[PlyCount "94"]
[EventDate "2020.02.05"]
[EventCountry "IND"]
[SourceTitle "playchess.com"]
[Source "ChessBase"]
[SourceQuality "1"]
[TimeControl "5400+30"]

1. d4 {[%emt 1:30:30]} Nf6 {[%emt 1:30:30]} 2. c4 {[%emt 0:00:30]} c5 {[%emt 0:00:30]} 3. d5 {[%emt 0:00:30]} e6 {[%emt 0:00:30]} 4. Nc3 {[%emt 0:00:30]} exd5 {[%emt 0:00:30]} 5. cxd5 {[%emt 0:00:30]} d6 {[%emt 0:00:30]} 6. Nf3 {[%emt 0:00:30]} g6 {[%emt 0:00:30]} 7. e4 {[%emt 0:00:30]} Bg7 {[%emt 0:00:30]} 8. Be2 {[%emt 0:00:30]} O-O {[%emt 0:00:30]} 9. O-O {[%emt 0:00:30]} Bg4 {[%emt 0:00:30]} 10. Bf4 {[%emt 0:00:30]} Bxf3 {[%emt 0:00:30]} 11. Bxf3 {[%emt 0:00:30]} Ne8 {[%emt 0:00:30]} 12. Qd2 {[%emt 0:00:30]} Nd7 {[%emt 0:00:30]} 13. Bh6 {[%emt 0:00:30]} Nc7 {[%emt 0:00:30]} 14. Bxg7 {[%emt 0:00:30]} Kxg7 {[%emt 0:00:30]} 15. Be2 {[%emt 0:00:30]} Rb8 {[%emt 0:00:30]} 16. a4 {[%emt 0:00:30]} a6 {[%emt 0:00:30]} 17. a5 {[%emt 0:00:30]} b5 {[%emt 0:00:30]} 18. axb6 {[%emt 0:00:30]} Rxb6 {[%emt 0:00:30]} 19. f4 {[%emt 0:00:30]} Qe7 {[%emt 0:00:30]} 20. f5 {[%emt 0:00:30]} Rfb8 {[%emt 0:00:30]} 21. Rab1 {[%emt 0:00:30]} Qe5 {[%emt 0:00:30]} 22. fxg6 {[%emt 0:00:30]} hxg6 {[%emt 0:00:30]} 23. Bd3 {[%emt 0:00:30]} Qd4+ {[%emt 0:00:30]} 24. Kh1 {[%emt 0:00:30]} Ne5 {[%emt 0:00:30]} 25. Rfd1 {[%emt 0:00:30]} Nxd3 {[%emt 0:00:30]} 26. Qxd3 {[%emt 0:00:30]} Qxd3 {[%emt 0:00:30]} 27. Rxd3 {[%emt 0:00:30]} Rxb2 {[%emt 0:00:30]} 28. Rdd1 {[%emt 0:00:30]} Rxb1 {[%emt 0:00:30]} 29. Rxb1 {[%emt 0:00:30]} Rxb1+ {[%emt 0:00:30]} 30. Nxb1 {[%emt 0:00:30]} Kf6 {[%emt 0:00:30]} 31. Nd2 {[%emt 0:00:30]} Ke5 {[%emt 0:00:30]} 32. Kg1 {[%emt 0:00:30]} Kd4 {[%emt 0:00:30]} 33. Kf2 {[%emt 0:00:30]} c4 {[%emt 0:00:30]} 34. e5 {[%emt 0:00:30]} Kxe5 {[%emt 0:00:30]} 35. Nxc4+ {[%emt 0:00:30]} Kxd5 {[%emt 0:00:30]} 36. Ne3+ {[%emt 0:00:30]} Kd4 {[%emt 0:00:30]} 37. Ke2 {[%emt 0:00:30]} Nd5 {[%emt 0:00:30]} 38. Nc2+ {[%emt 0:00:30]} Kc3 {[%emt 0:00:30]} 39. Kd1 {[%emt 0:00:30]} a5 {[%emt 0:00:30]} 40. g4 {[%emt 0:00:30]} g5 {[%emt 0:00:30]} 41. h3 {[%emt 0:00:30]} Nf4 {[%emt 0:00:30]} 42. Na3 d5 {[%emt 0:00:30]} 43. Nb5+ {[%emt 0:01:00]} Kb2 {[%emt 0:00:30]} 44. Kd2 {[%emt 0:00:30]} a4 {[%emt 0:00:30]} 45. Nc3 {[%emt 0:00:30]} a3 {[%emt 0:00:30]} 46. Nd1+ {[%emt 0:00:30]} Kb3 {[%emt 0:00:30]} 47. Nc3 {[%emt 0:00:30]} a2 {[%emt 0:00:30]} 0-1

[Event "40th IND-chT Open 2020"]
[Site "Ahmedabad"]
[Date "2020.02.10"]
[Round "6.21"]
[White "Anadkat Kartavya"]
[Black "Tanishq Gupta"]
[Result "1-0"]
[ECO "C00"]
[WhiteElo "2152"]
[BlackElo "1763"]
[Annotator "ChessBase"]
[PlyCount "77"]
[EventDate "2020.02.05"]
[EventCountry "IND"]
[SourceTitle "playchess.com"]
[Source "ChessBase"]
[SourceQuality "1"]
[TimeControl "5400+30"]

1. e4 {[%emt 1:30:30]} e6 {[%emt 1:30:30]} 2. d3 {[%emt 0:00:30]} d5 {[%emt 0:00:30]} 3. Nd2 {[%emt 0:00:30]} Nf6 {[%emt 0:00:30]} 4. Ngf3 {[%emt 0:00:30]} Be7 {[%emt 0:00:30]} 5. g3 {[%emt 0:00:30]} O-O {[%emt 0:00:30]} 6. Bg2 {[%emt 0:00:30]} c5 {[%emt 0:00:30]} 7. O-O {[%emt 0:00:30]} Nc6 {[%emt 0:00:30]} 8. Re1 {[%emt 0:00:30]} Qc7 {[%emt 0:00:30]} 9. Nf1 {[%emt 0:00:30]} dxe4 {[%emt 0:00:30]} 10. dxe4 {[%emt 0:00:30]} Rd8 {[%emt 0:00:30]} 11. Qe2 {[%emt 0:00:30]} e5 {[%emt 0:00:30]} 12. c3 {[%emt 0:00:30]} h6 {[%emt 0:00:30]} 13. N3d2 {[%emt 0:00:30]} Bg4 {[%emt 0:00:30]} 14. Bf3 {[%emt 0:00:30]} Be6 {[%emt 0:00:30]} 15. Ne3 {[%emt 0:00:30]} a6 {[%emt 0:00:30]} 16. Ng4 {[%emt 0:00:30]} Qd7 {[%emt 0:00:30]} 17. Nxf6+ {[%emt 0:00:30]} Bxf6 {[%emt 0:00:30]} 18. Nc4 {[%emt 0:00:30]} Bxc4 {[%emt 0:00:30]} 19. Qxc4 {[%emt 0:00:30]} Be7 {[%emt 0:00:30]} 20. Bh5 {[%emt 0:00:30]} Bf8 {[%emt 0:00:30]} 21. Qe2 {[%emt 0:00:30]} b5 {[%emt 0:00:30]} 22. Be3 {[%emt 0:00:30]} c4 {[%emt 0:00:30]} 23. b3 {[%emt 0:00:30]} cxb3 {[%emt 0:00:30]} 24. axb3 {[%emt 0:00:30]} Qc7 {[%emt 0:00:30]} 25. Rec1 {[%emt 0:00:30]} Na5 {[%emt 0:00:30]} 26. Qc2 {[%emt 0:00:30]} Nb7 {[%emt 0:00:30]} 27. c4 {[%emt 0:00:30]} b4 {[%emt 0:00:30]} 28. c5 {[%emt 0:00:30]} Qc6 {[%emt 0:00:30]} 29. Qc4 {[%emt 0:00:30]} Rd7 {[%emt 0:00:30]} 30. Qxb4 {[%emt 0:00:30]} Rc7 {[%emt 0:00:30]} 31. Qc4 {[%emt 0:00:30]} Qe6 {[%emt 0:00:30]} 32. Qxe6 {[%emt 0:00:30]} fxe6 {[%emt 0:00:30]} 33. b4 {[%emt 0:00:30]} a5 {[%emt 0:00:30]} 34. c6 {[%emt 0:00:30]} Nd6 {[%emt 0:00:30]} 35. Bb6 {[%emt 0:00:30]} Rcc8 {[%emt 0:00:30]} 36. bxa5 {[%emt 0:00:30]} Nb5 {[%emt 0:00:30]} 37. c7 {[%emt 0:00:30]} Bd6 {[%emt 0:00:30]} 38. Rc6 {[%emt 0:00:30]} Bxc7 {[%emt 0:00:30]} 39. Rac1 {[%emt 0:00:30]} 1-0

[Event "40th IND-chT Open 2020"]
[Site "Ahmedabad"]
[Date "2020.02.10"]
[Round "6.22"]
[White "Dutta Sarthak"]
[Black "Bhatt, Jalpan"]
[Result "0-1"]
[ECO "A38"]
[WhiteElo "1704"]
[BlackElo "1983"]
[Annotator "NA RC"]
[PlyCount "102"]
[EventDate "2020.02.05"]
[EventCountry "IND"]
[SourceTitle "playchess.com"]
[Source "ChessBase"]
[SourceQuality "1"]
[TimeControl "5400+30"]

1. Nf3 {[%emt 0:00:00]} Nf6 {[%emt 0:00:00]} 2. c4 {[%emt 0:00:01]} g6 {[%emt 0:00:08]} 3. Nc3 {[%emt 0:00:09]} c5 {[%emt 0:01:46]} 4. g3 {[%emt 0:00:31]} Bg7 {[%emt 0:00:13]} 5. Bg2 {[%emt 0:00:02]} O-O {[%emt 0:01:07]} 6. O-O {[%emt 0:00:03]} d5 {[%emt 0:01:03]} 7. cxd5 {[%emt 0:03:37]} Nxd5 {[%emt 0:00:02]} 8. Nxd5 {[%emt 0:02:19]} Qxd5 {[%emt 0:00:03]} 9. d3 {[%emt 0:00:38]} Qh5 {[%emt 0:05:03]} 10. Qc2 {[%emt 0:11:38]} Nc6 {[%emt 0:03:45]} 11. Be3 {[%emt 0:06:24] A38: Symmetrical English vs ...g6: 4 Bg2 Bg7 5 Nf3 Nf6.} Nd4 {[%emt 0:17:56]} 12. Bxd4 {[%emt 0:03:18]} cxd4 {[%emt 0:00:25] [#]} 13. Qa4 $146 {[%emt 0:03:19]} ({Predecessor:} 13. Qc7 Qb5 14. a4 Qxb2 15. Qxe7 Bg4 16. Rfb1 Qc2 17. Rxb7 Rae8 18. Qg5 Bc8 19. Rxa7 Rxe2 {0-1 (29) Syrchikov,A (2256)-Abramichev,A (2072) St Petersburg 2010}) 13... Rd8 {[%emt 0:05:40]} 14. Qb4 {[%emt 0:01:37]} Bf6 {[%emt 0:11:21]} 15. Rac1 {[%emt 0:05:02]} Rd5 {[%emt 0:19:41]} 16. Rc2 {[%emt 0:03:52]} Rb5 {[%emt 0:01:44]} 17. Qd2 {[%emt 0:04:29]} Be6 {[%emt 0:05:35]} 18. b3 {[%emt 0:03:35]} a5 {[%emt 0:04:48]} 19. e3 {[%emt 0:11:24]} dxe3 {[%emt 0:03:44]} 20. Qxe3 {[%emt 0:01:30]} a4 {[%emt 0:00:36]} 21. Nd4 {[%emt 0:02:35]} Re5 {[%emt 0:01:49]} 22. Qc1 {[%emt 0:05:04]} Bd5 {[%emt 0:04:28]} 23. Rc8+ {[%emt 0:00:54]} Rxc8 {[%emt 0:00:02]} 24. Qxc8+ {[%emt 0:00:07]} (24. Qc2 {[%emt 0:29:59]} Rc7 25. Qxc7 {[%emt 0:00:00]} Kg7 {[%emt 0:00:35]} 26. Qc8 Be4 $4 {[%mdl 8192]} (26... Rg5 $19 {avoids the disaster.} 27. Qc7 Bxd4 28. Qxe7 axb3 29. axb3 Bxg2 30. Kxg2 Rb5)) 24... Kg7 {[%emt 0:00:05]} 25. Bxd5 {[%emt 0:00:33]} Rxd5 {[%emt 0:00:08]} 26. g4 {[%emt 0:12:05]} Rg5 $18 {[%emt 0:01:36]} 27. Ne2 {[%emt 0:00:19]} Rxg4+ {[%emt 0:01:41]} 28. Ng3 {[%emt 0:00:22]} Qh3 {[%emt 0:00:56]} 29. Qxb7 {[%emt 0:00:32]} h5 {[%emt 0:00:17]} 30. Qg2 {[%emt 0:00:54]} Qxg2+ {[%emt 0:00:10]} 31. Kxg2 {[%emt 0:00:03]} h4 {[%emt 0:00:04]} 32. Kf3 {[%emt 0:00:32]} Rd4 {[%emt 0:04:26]} 33. Ne4 {[%emt 0:00:06]} axb3 {[%emt 0:00:12]} 34. Nxf6 {[%emt 0:00:33]} Kxf6 {[%emt 0:00:28]} 35. Ke3 {[%emt 0:00:02]} Rb4 {[%emt 0:00:13]} 36. axb3 {[%emt 0:00:02]} Rxb3 {[%emt 0:00:05]} 37. Ra1 {[%emt 0:00:38]} e5 {[%emt 0:00:34]} 38. h3 {[%emt 0:00:18]} Kf5 {[%emt 0:01:51]} 39. Ra5 {[%emt 0:00:17]} g5 {[%emt 0:00:18]} 40. Rc5 {[%emt 0:00:18]} f6 {[%emt 0:00:17]} 41. Ra5 {[%emt 0:00:35]} Rb1 {[%emt 0:00:19]} 42. Kf3 {[%emt 0:00:59]} Rd1 {[%emt 0:00:22]} 43. Ra3 {[%emt 0:00:05]} Rxd3+ {[%emt 0:00:42]} 44. Rxd3 {[%emt 0:00:19]} e4+ {[%emt 0:00:02]} 45. Ke3 {[%emt 0:00:18]} exd3 {[%emt 0:00:02]} 46. f3 {[%emt 0:02:43]} d2 {[%emt 0:01:02]} 47. Kxd2 {[%emt 0:00:03]} Kf4 {[%emt 0:00:02]} 48. Ke2 {[%emt 0:00:09]} Kg3 {[%emt 0:00:04]} 49. Ke3 {[%emt 0:00:34]} Kxh3 {[%emt 0:01:29]} 50. f4 {[%emt 0:00:31]} Kg3 {[%emt 0:01:02]} 51. Ke2 {[%emt 0:00:14]} Kxf4 {[%emt 0:00:33]} 0-1